Cogmind - Beta 14 @@@ ROGUE MODE // 2024.08.26 @ 01:43:00 Player: JohnnyDongs Result: Destroyed by UC-9PQ(R) with Subdweller Laser Performance ------------- Evolutions (0) 0 Regions Visited (2) 400 Robots Destroyed (41) 205 Value Destroyed (635) 635 Prototype IDs (14) 280 Alien Tech Used (0) 0 Bonus (0) 0 TOTAL SCORE: 1520 Bonus ------- None Cogmind --------- Core Integrity 0/250 Matter 165/300 Energy 180/180 System Corruption 10% Temperature Cool (6) Movement Rolling (110) Location -10/Subcaves Parts ------- > --- POWER (1) -------- Meta Core > --- PROPULSION (2+1) - Subdweller Monowheel Subdweller Monowheel Subdweller Monowheel (+) > --- UTILITY (2+1) ---- Structural Scanner (+) Scrap Shield > --- WEAPON (2+1) ----- Autogun (+) Subdweller Machine Gun Subdweller Machine Gun > --- INVENTORY (5) ---- Improved Terrain Scanner Autogun Autogun Autogun Mining Laser Peak State ------------ > --- POWER ------------ Meta Core > --- PROPULSION ------- Subdweller Monowheel Subdweller Monowheel Subdweller Monowheel > --- UTILITY ---------- Structural Scanner Scrap Shield > --- WEAPON ----------- Autogun Subdweller Machine Gun Subdweller Machine Gun > --- INVENTORY -------- Improved Terrain Scanner Autogun Autogun Autogun Mining Laser [Rating: 31] Favorites ----------- Power Ion Engine Engine Ion Engine Power Core Meta Core Propulsion Aluminum Leg Leg Aluminum Leg Wheel Wheel Utility Improved Terrain Scanner Device Improved Terrain Scanner Processor Visual Processing Unit Protection Scrap Shield Weapon Assault Rifle Energy Gun Medium Laser Ballistic Gun Assault Rifle Special Weapon Mining Laser Build | -11 -10 -10 ------- Run | Yrd Mat Sub Slots Evolved . | . . . Power . | . . . Propulsion . | . . . Utility . | . . . Weapon . | . . . Parts Attached 41 | 14 12 15 Power 3 | 1 . 2 Engine 2 | 1 . 1 Core 1 | . . 1 Reactor . | . . . Propulsion 12 | 2 5 5 Treads . | . . . Leg 2 | 2 . . Wheel 10 | . 5 5 Hover . | . . . Flight . | . . . Utility 11 | 5 3 3 Device 8 | 5 1 2 Storage . | . . . Processor 2 | . 2 . Hackware . | . . . Protection 1 | . . 1 Artifact . | . . . Weapon 15 | 6 4 5 Energy Gun 3 | 3 . . Energy Cannon . | . . . Ballistic Gun 9 | 1 4 4 Ballistic Cannon . | . . . Launcher . | . . . Special Weapon 3 | 2 . 1 Impact Weapon . | . . . Slashing Weapon . | . . . Piercing Weapon . | . . . Special Melee Weapon . | . . . Unidentified Prototypes . | . . . Parts Lost 5 | 3 2 . Power . | . . . Propulsion 2 | . 2 . Utility 2 | 2 . . Weapon 1 | 1 . . Highest Loss Streak 3 | 3 1 . To Critical Strikes . | . . . Average Slot Usage (%) 94 | . 96 82 Engine 13 | . 14 6 Leg 11 | . 12 . Wheel 13 | . 11 24 Device 19 | . 21 5 Processor 5 | . 6 . Protection 1 | . . 11 Energy Gun 8 | . 9 . Ballistic Gun 19 | . 18 26 Peak Build Rating 31 | 12 12 31 Average Rating 3 | 3 10 20 On Entrance 7 | . 12 11 Naked Turns . | . . . Heaviest Build 36 | 13 13 36 Greatest Support 60 | 20 26 60 Greatest Overweight (x) 1 | . 1 1 Average Overweight (x) . | . . . Largest Inventory Capacity 5 | 5 5 5 Average Capacity 5 | 5 5 5 Most Carried 5 | 1 5 5 Average Carried . | . 2 4 Final Capacity 5 | 5 5 5 Final Carried 5 | 1 5 5 Class Distribution -------------------- 99% | Mutant Dominant Class ---------------- Mutant | -10/Materials Subdweller-Tank | -10/Subcaves Resources | -11 -10 -10 ----------- Run | Yrd Mat Sub Matter Collected 1212 | 489 533 190 Remotely . | . . . Salvage Created 1014 | 208 589 217 Parts 107 | 34 58 15 Haulers Intercepted 2 | . 2 . Recyclers Shooed . | . . . Parts Field Recycled . | . . . Retrieved Matter . | . . . Parts Self-Destructed 5 | . . 5 Prevented . | . . . Kills | -11 -10 -10 ------- Run | Yrd Mat Sub Combat Hostiles Destroyed 19 | 1 13 5 Guns 19 | 1 13 5 Classes Destroyed 9 | 3 5 1 Worker 6 | 2 4 . Builder 4 | . 4 . Tunneler 9 | 9 . . Hauler 2 | . 2 . Watcher 1 | . 1 . Swarmer 8 | . 8 . Grunt 5 | . 5 . Demolisher 1 | 1 . . Subdweller 5 | . . 5 Best Kill Streak 6 | 6 3 2 Combat Bots Only 3 | 1 3 2 Max Kills in Single Turn 2 | 1 2 1 Gunslinging 1 | . 1 . Exploded . | . . . Melee . | . . . Uniques/NPCs Destroyed . | . . . Combat | -11 -10 -10 -------- Run | Yrd Mat Sub Hostile Shots Fired 96 | 3 68 25 Missed 24 | . 19 5 Damage Taken 1313 | 388 478 447 Core 268 | 95 112 61 Absorbed by Shields . | . . . Core Remaining (%) 62 | 62 . . Volleys Fired 123 | 37 69 17 Largest 3 | 2 2 3 Hottest 100 | 100 70 100 Shots Fired 242 | 59 139 44 Gun 222 | 42 139 41 Cannon . | . . . Launcher . | . . . Special 20 | 17 . 3 Kinetic 183 | 21 121 41 Thermal 59 | 38 18 3 Explosive . | . . . Electromagnetic . | . . . Robot Hit Streak 11 | 10 6 11 Robot Miss Streak 5 | 4 5 2 Penetration Max . | . . . Secondary Targets 6 | . 4 2 Max Gunslinging Chain 1 | . 1 1 Shots Hit Robots 126 | 22 72 32 Core Hits 56 | 12 34 10 Critical Kills . | . . . Critical Parts Destroyed . | . . . Critical Strikes . | . . . Melee Attacks . | . . . Impact . | . . . Slashing . | . . . Piercing . | . . . Sneak Attacks . | . . . Combat Hostiles . | . . . Follow-up Attacks . | . . . Damage Inflicted 1784 | 284 1001 499 Guns 1784 | 284 1001 499 Cannons . | . . . Explosions . | . . . Melee . | . . . Ramming . | . . . Kinetic 1534 | 120 915 499 Thermal 250 | 164 86 . Explosive . | . . . Electromagnetic . | . . . Impact . | . . . Slashing . | . . . Piercing . | . . . Highest Corruption 10 | 7 10 10 Average Corruption 7 | 7 7 10 Corruption Purged . | . . . Corruption Blocked . | . . . Effects 170 | 89 72 9 Message Errors 42 | 20 19 3 Matter Fused 54 | 32 19 3 Heat Flow Errors 17 | 11 6 . Energy Discharges 21 | 10 10 1 Parts Fused 1 | 1 . . Data Loss (minor) 18 | 9 9 . Data Loss (major) 6 | 3 3 . Misfires 6 | 2 3 1 Alerts 3 | 1 1 1 Weapon Failures 2 | . 2 . Overload Shots . | . . . Overflow Damage . | . . . Projectiles . | . . . Explosions . | . . . Melee . | . . . Knockbacks . | . . . Impact . | . . . Kinetic . | . . . Secondary . | . . . Self-Inflicted Damage . | . . . Shots . | . . . Rammed . | . . . Targets Rammed . | . . . Kicked . | . . . Crushed . | . . . Highest Temperature 314 | 314 275 3 Average Temperature 63 | 86 35 3 Received Heat Transfer 183 | . 126 57 Siege Activations . | . . . Robots Corrupted . | . . . Combat Hostiles . | . . . Parts Fried . | . . . Impact Corruptions . | . . . Robots Melted . | . . . Combat Hostiles . | . . . Parts Melted . | . . . Heat Transferred 740 | 481 259 . Parts Sabotaged . | . . . Parts Stolen . | . . . Parts Stripped . | . . . Power Chain Reactions . | . . . Alert | -11 -10 -10 ------- Run | Yrd Mat Sub Peak Influence 288 | 60 288 . Initial 39 | . 39 . Average 2 | 1 66 . Maximum Alert Level 1 | . 1 . Low Security (%) 99 | 100 92 . Level 1 . | . 7 . Level 2 . | . . . Level 3 . | . . . Level 4 . | . . . Level 5 . | . . . High Security . | . . . Max Security . | . . . Squads Dispatched 1 | . 1 . Investigation 1 | . 1 . Extermination . | . . . Reinforcement . | . . . Assault . | . . . Garrison . | . . . Intercept . | . . . Searches Triggered . | . . . Construction Impeded . | . . . Haulers Reinforced . | . . . Active Scanning Responses . | . . . Cargo Convoy Interrupts . | . . . Stealth | -11 -10 -10 --------- Run | Yrd Mat Sub Distress Signals 2 | . 2 . Communications Jammed . | . . . Distress Signals . | . . . Times Spotted 35 | 1 21 13 Peak Tracking Total 7 | 1 5 7 Tactical Retreats . | . . . Traps | -11 -10 -10 ------- Run | Yrd Mat Sub Traps Triggered 3 | . 3 . Indirectly . | . . . Trap Hack Attempts . | . . . Triggered . | . . . Disarmed . | . . . Reprogrammed . | . . . Reused . | . . . Traps Extracted . | . . . Installed . | . . . Triggered . | . . . Machines | -11 -10 -10 ---------- Run | Yrd Mat Sub Machines Disabled 2 | . 1 1 Max in Single Turn 1 | . 1 1 Machines Repaired . | . . . Machines Dismantled . | . . . Machines Sabotaged . | . . . Overloaded Fab Kills . | . . . Hacking | -11 -10 -10 --------- Run | Yrd Mat Sub Machines Accessed 9 | . 8 1 Terminals 6 | . 6 . Fabricators . | . . . Repair Stations . | . . . Recycling Units 2 | . 2 . Scanalyzers . | . . . Garrison Access . | . . . Total Hacks 34 | . 25 9 Successful 23 | . 14 9 Failed 11 | . 11 . Catastrophic 1 | . 1 . Database Lockouts . | . . . Manual 19 | . 19 . Terminals 20 | . 20 . Fabricators . | . . . Repair Stations . | . . . Recycling Units 5 | . 5 . Scanalyzers . | . . . Garrison Access . | . . . Terminal Hacks 15 | . 6 9 Record 8 | . . 8 Prototype ID Bank 2 | . 2 . Level Access Points 1 | . 1 . Branch Access Points 1 | . 1 . Terminal Index 1 | . 1 . Hauler Manifests 1 | . 1 . Derelict Proto ID Bank 1 | . . 1 Fabricator Hacks . | . . . Repair Station Hacks . | . . . Recycling Unit Hacks 3 | . 3 . Report Inventory 2 | . 2 . Retrieve Matter 1 | . 1 . Scanalyzer . | . . . Garrison Access Hacks . | . . . Unauthorized Hacks 5 | . 5 . Terminals 4 | . 4 . Botnet 4 | . 4 . Fabricators . | . . . Repair Stations . | . . . Recycling Units 1 | . 1 . Monitor 1 | . 1 . Scanalyzers . | . . . Garrison Access . | . . . Data Cores Recovered . | . . . Used . | . . . Hacking Detections 5 | . 5 . Full Trace Events 1 | . 1 . Feedback Events . | . . . Feedback Blocked . | . . . Robot Schematics Acquired . | . . . Robots Built . | . . . Authchips . | . . . Time . | . . . Total Robot Build Rating . | . . . Part Schematics Acquired . | . . . Parts Built . | . . . Authchips . | . . . Time . | . . . Total Part Build Rating . | . . . Parts Repaired . | . . . Time . | . . . Parts Recycled . | . . . Recycled Matter . | . . . Retrieved Matter 234 | . 234 . Retrieved Components . | . . . Parts Scanalyzed . | . . . Part Schematics Acquired . | . . . Parts Damaged . | . . . Bothacking | -11 -10 -10 ------------ Run | Yrd Mat Sub Used RIF Installer . | . . . Robots Hacked . | . . . Non-combat . | . . . Combat . | . . . Robot Hacks Applied . | . . . Relay Couplers Released . | . . . Fabnet Peak Effective % . | . . . Robots Rewired . | . . . Allies Hacked . | . . . Hacks Repelled . | . . . Allies | -11 -10 -10 -------- Run | Yrd Mat Sub Total Allies . | . . . Largest Group . | . . . Highest-Rated Group . | . . . Highest-Rated Ally . | . . . Total Orders . | . . . Ally Attacks . | . . . Total Damage . | . . . Kills . | . . . Allies Corrupted . | . . . Allies Melted . | . . . Intel | -11 -10 -10 ------- Run | Yrd Mat Sub Robot Analysis Total . | . . . Derelict Logs Recovered 1 | . . 1 Drone Launches . | . . . Drone Recoveries . | . . . Exploration | -11 -10 -10 ------------- Run | Yrd Mat Sub Turns Passed 108929 | 106401 2248 280 Spaces Moved 3953 | 2549 1222 182 Core 992 | 992 . . Treads . | . . . Legs 1913 | 1557 356 . Wheels 1048 | . 866 182 Hover . | . . . Flight . | . . . Fastest Speed 50 | 50 80 80 Average Speed 94 | 92 95 105 Slowest Speed 120 | 120 120 120 Overloaded Moves . | . . . Propulsion Burnouts . | . . . Robots Hopped . | . . . Cave-ins Triggered 1 | 1 . . Exploration Rate (%) 74 | 118 96 9 Regions Visited 2 Branch Regions 1 Pre-discovered Areas 1 | . . 1 Known Exits Taken 1 | . 1 . Unknown Exits Taken 1 | 1 . . Scrap Searched . | . . . Spaces Dug 10 | 10 . . Terrain Destroyed 11 | 11 . . Melee . | . . . Projectile 11 | 11 . . AOE . | . . . Terrain Rammed . | . . . Walls Destroyed . | . . . Machines Disabled . | . . . Actions | -11 -10 -10 --------- Run | Yrd Mat Sub Total 108916 | 106488 2188 240 Wait 104762 | 103886 873 3 Move 3951 | 2548 1221 182 Hop . | . . . Pick Up 11 | 2 4 5 Fast Attach 26 | 10 10 6 Attach 4 | 1 . 3 Detach . | . . . Swap 11 | 3 2 6 Drop 23 | 1 9 13 Fire 123 | 37 69 17 Melee . | . . . Ram . | . . . Kick . | . . . Crush . | . . . Escape Stasis . | . . . Rewire . | . . . Trap . | . . . Miscellaneous 5 | . . 5 Route ------- -11/Scrapyard -10/Materials (discovered 6 exits: *Mat x3 / *Min x2 / *Sub) -10/Subcaves History --------- Turn | Location | Event 4606 | -11/Scrapyard | Discovered new exit (range 12) 103472 | -11/Scrapyard | Crushed by falling debris 103503 | -11/Scrapyard | Lost 3 parts (2u1w) 106264 | -11/Scrapyard | Assembled infested the area 106402 | -11/Scrapyard | Entered Materials 106403 | -10/Materials | Build established: Mutant 106889 | -10/Materials | Discovered new exit (range 4) 107031 | -10/Materials | Discovered new exit (range 5) 107080 | -10/Materials | Discovered new exit (range 13) 107138 | -10/Materials | Discovered new exit (range 14) 107839 | -10/Materials | Discovered new exit (range 11) 107927 | -10/Materials | Identified exit to Materials 107940 | -10/Materials | Core integrity fell below 50% 108204 | -10/Materials | Identified exit to Subcaves 108225 | -10/Materials | Build established: Scavenger-Mutant 108281 | -10/Materials | Identified exit to Mines 108513 | -10/Materials | Core integrity fell below 20% 108542 | -10/Materials | System corruption reached 10% 108650 | -10/Materials | Entered Subcaves 108750 | -10/Subcaves | Learned location of Zion (-6) 108772 | -10/Subcaves | Visited 4L-MR0's lab 108785 | -10/Subcaves | Found Meta Core 108787 | -10/Subcaves | Attached Meta Core, gained temporary slots: Propulsion, Utility, Weapon 108920 | -10/Subcaves | Ambushed by swarm of Subdwellers 108922 | -10/Subcaves | Ambushed by Subdwellers from Twisted Machinery 108922 | -10/Subcaves | Ambushed by Subdwellers from Twisted Machinery 108930 | -10/Subcaves | Destroyed by UC-9PQ(R) with Subdweller Laser Last Messages --------------- 08899_ Scrap Shield Fragment affixed to Scrap Shield (+39). 08902_ Scrap Shield Fragment affixed to Scrap Shield (+49). 08904_ Scrap Shield Fragment affixed to Scrap Shield (+43). 08906_ ATGMC 7H 59>TYSWSXGJCGFMJ|:70F 08909_ Acquired Autogun. 08923_ UA-0M7(R) angrily emerges from the Twisted Machinery. 08923_ Z9-YBB(R) angrily emerges from the Twisted Machinery. 08924_ 8S-B1Y(R) emerges from the Twisted Machinery. 08925_ 1K-G48(R) emerges from the Twisted Machinery. 08926_ OB-J0Q(R) destroyed. 08926_ Switching to secondary target: UC-9PQ(R). 08931_ HI-9K6(R) emerges from the Twisted Machinery. Map ----- +----------------------------------------------------+ | ????????????????????????????????????????????????? | | ###?????????????????????????????????????????????? | | # ##????????????????????????????????????????????? | | # ####?????????????????????????????????????????? | | # # ##????????????????????????????????????????? | | # ##???????????????????????????????????????? | | # #########???????????????????????????????? | | ## # #" #####??????????????????????????????? | | #! ## %%[!#??????????????????????????????? | | ######### #"### *###?????????????????????????????? | | ????????#####?##=###?????????????????????????????? | | ??????????????# ##?????????????????????????????? | | ??????????????## ##?????????????????????????????? | | ?????????####### ##?????????????????????????????? | | ?????????####### #?????????????????????????????? | | ?????????# ##?? ##???????####?????????????? | | ??????#### ### ###? ##???????#####????????????? | | ##????#### #### ### #??????? ###????????????? | | ##???### ### ## ????????? ##????????????? | | ##???### ## ???????? ###???????????? | | ####### ### ###??????? ####??????????? | | #######" ### ###?????## ####?????????? | | ### #"" #### ###?###### ###?????????? | | ### ####### ######## ##?????????? | | ###=! ### ##!! &##### RRR R ###?????????? | | ### #" * ### @% RR ????????????? | | ####!## ## #! ## ###"# ????????????? | | ##" # ####### # ##### ??????????????????? | | " ## ## #### ###?????????????????? | | " "^ ## #### ??????????????? | | " "" ### ##??????????????? | | " #### # ## ####### ## ??????????????? | | ####### ############ ## ??????????????? | | ####### ######????# " ###???????????????? | | ?????#### #????????? " ### ???????????????? | | ?????### ##??????? "" ###????????????????? | | ??????### ##??????? ##""""" ?????????????????? | | ??????## ##???????###"""" #??????????????? | | ???????## #????????## " ? ##??????????????? | | ???????## #???????? ???? ####??????????????? | | ??????? ##????????????????? ####??????????????? | | ???????? ##????????????????? ##????????????????? | | ??????? ##"????????????????????????????????????? | | ???????### ""????????????????????????????????????? | | ???????### ??????????????????????????????????????? | | ?????????????????????????????????????????????????? | | ?????????????????????????????????????????????????? | | ?????????????????????????????????????????????????? | | ?????????????????????????????????????????????????? | | ?????????????????????????????????????????????????? | +----------------------------------------------------+ Best States ------------- Heat Dissipation 25 Energy Generation 17 Energy Capacity 250 Matter Stores 300 Matter Capacity 300 Sight Range 18 Terrain Scan Range 16 Terrain Scan Density 10 Armor Coverage 800 Resistance: EX 25 Evasion (%) 55 Item Schematics ----------------- None Robot Schematics ------------------ None Fabricated ------------ Nothing Alien Tech Used ----------------- None Achievements -------------- Curiosity Killed The Cat Challenges ------------ None Game ------ Seed BiometalLauncherPrototype Manual? 0 Play Time 01:48:19 Cumulative 35.8 hours Start 2024.08.25 @ 23:25:34 End 2024.08.26 @ 01:43:00 Sessions 2 Manual Loads 0 Difficulty Rogue Special Mode None Game No. 22 Rogue 22 Adventurer 0 Explorer 0 Win Type - Total 0 Types 0/0/0/0/0/0/0/0/0 Lore% 15 Gallery% 30 Achievement% 32 Wizard Run 0 Options --------- Layout 1 ASCII 0 Keyboard 0 Movement Numpad Keybinds 0 Fullscreen 1 Font 24/Smallcaps Map View 50x35 Zoom Use 0% Tactical HUD 1 Map Filters NONE Filters NONE Steam 1 RUN: ace2f660-1dc6-4c36-9623-8534a9fe52e2